Cogmind - Beta 11 X10 @@@ ROGUE MODE // 2022.02.28 @ 12:40:35 Player: lsend Result: Escaped! Performance ------------- Evolutions (9) 4500 Regions Visited (23) 4600 Robots Destroyed (5) 25 Value Destroyed (118) 118 Prototype IDs (51) 1020 Alien Tech Used (2) 400 Bonus (8079) 8079 TOTAL SCORE: 18742 Bonus ------- Follower Combat Kills 132 Entered DSFs 1000 Aligned with FarCom 300 Met Data Miner 300 Win 3000 Win Speed 3347 Cogmind --------- Core Integrity 1444/1600 Matter 159/300 Energy 238/240 System Corruption 5% Temperature Cool (5) Movement Flying (26) Location To Epsilon Eridani Parts ------- > --- POWER (2) -------- Micro Fission Core Light Quantum Reactor > --- PROPULSION (8) --- Cooled Nuclear Pulse Thruster Cooled Nuclear Pulse Thruster Cooled Nuclear Pulse Thruster Nuclear Pulse Array Impulse Thruster Impulse Thruster Array > --- UTILITY (13) ----- Small Storage Unit Gravity Neutralizer Machine Analyzer Experimental Optical Array Improved Signal Interpreter Experimental Core Shielding Experimental Thermal Shield Thermal Defense Suite Improved System Shield Improved System Shield Advanced System Shield Advanced Corruption Screen > --- WEAPON (2) ------- Enhanced Quantum Rifle Chainsword > --- INVENTORY (8) ---- Field Propulsion Drive Field Propulsion Drive Advanced Energy Well (500) Chronowheel Long-range Missile Launcher Flail Peak State ------------ > --- POWER ------------ Micro Fission Core Light Quantum Reactor > --- PROPULSION ------- Cooled Nuclear Pulse Thruster Cooled Nuclear Pulse Thruster Cooled Nuclear Pulse Thruster Nuclear Pulse Array Impulse Thruster Impulse Thruster Array > --- UTILITY ---------- Small Storage Unit Gravity Neutralizer Machine Analyzer Experimental Optical Array Improved Signal Interpreter Experimental Core Shielding Experimental Thermal Shield Thermal Defense Suite Improved System Shield Improved System Shield Improved System Shield Advanced System Shield Advanced Corruption Screen > --- WEAPON ----------- Enhanced Quantum Rifle Chainsword > --- INVENTORY -------- Field Propulsion Drive Field Propulsion Drive Advanced Energy Well Chronowheel Long-range Missile Launcher Flail [Rating: 162] Favorites ----------- Power Micro Fission Core Engine Light Angular Momentum Engine Power Core Micro Fission Core Reactor Fusion Reactor Propulsion Flight Unit Treads Light Treads Flight Unit Flight Unit Utility Gravity Neutralizer Device Gravity Neutralizer Storage Small Storage Unit Processor Improved Signal Interpreter Hackware Advanced System Shield Protection Light Armor Plating Weapon Chainsword Energy Gun Enhanced Quantum Rifle Ballistic Gun Improved Assault Rifle Impact Weapon Flail Slashing Weapon Chainsword Build | -11 -10 -10 -10 -9 -8 -7 -7 -6 -6 -6 -6 -5 -5 -5 -5 -5 -4 -4 -4 -3 -3 -2 -1 ------- Run | Scr Mat Min Exi Min Mat Fac DSF Fac Low Low Dat Pro Fac Upp Upp Zhi Pro Fac Ext Res DSF Res Acc Slots Evolved 18 | . . . . . 4 2 . 2 . . . . 2 . . . . 2 . 2 . 2 2 Power 1 | . . . . . . . . 1 . . . . . . . . . . . . . . . Propulsion 6 | . . . . . 2 1 . . . . . . 1 . . . . . . . . 1 1 Utility 11 | . . . . . 2 1 . 1 . . . . 1 . . . . 2 . 2 . 1 1 Weapon . | . . . . . . . . . . . . . . . . . . . . . . . . Parts Attached 63 | 2 3 2 . . 7 . 1 7 3 . . 1 7 . . 9 . . . 5 1 4 11 Power 7 | . . . . . 1 . . . 1 . . . 2 . . 1 . . . . . . 2 Engine 1 | . . . . . . . . . 1 . . . . . . . . . . . . . . Core 3 | . . . . . 1 . . . . . . . 2 . . . . . . . . . . Reactor 3 | . . . . . . . . . . . . . . . . 1 . . . . . . 2 Propulsion 18 | 2 . 2 . . 3 . . 3 . . . . 1 . . 2 . . . 1 . 1 3 Treads 2 | 2 . . . . . . . . . . . . . . . . . . . . . . . Leg . | . . . . . . . . . . . . . . . . . . . . . . . . Wheel . | . . . . . . . . . . . . . . . . . . . . . . . . Hover . | . . . . . . . . . . . . . . . . . . . . . . . . Flight 16 | . . 2 . . 3 . . 3 . . . . 1 . . 2 . . . 1 . 1 3 Utility 31 | . 2 . . . 2 . 1 3 2 . . 1 3 . . 5 . . . 4 1 3 4 Device 8 | . . . . . 1 . . 1 . . . 1 1 . . 1 . . . 2 . . 1 Storage 2 | . . . . . . . . . . . . . . . . 2 . . . . . . . Processor 7 | . 1 . . . . . 1 1 1 . . . . . . . . . . . . 2 1 Hackware 6 | . . . . . . . . 1 . . . . 1 . . . . . . 1 . 1 2 Protection 8 | . 1 . . . 1 . . . 1 . . . 1 . . 2 . . . 1 1 . . Artifact . | . . . . . . . . . . . . . . . . . . . . . . . . Weapon 7 | . 1 . . . 1 . . 1 . . . . 1 . . 1 . . . . . . 2 Energy Gun 1 | . . . . . . . . . . . . . . . . . . . . . . . 1 Energy Cannon . | . . . . . . . . . . . . . . . . . . . . . . . . Ballistic Gun 1 | . 1 . . . . . . . . . . . . . . . . . . . . . . Ballistic Cannon . | . . . . . . . . . . . . . . . . . . . . . . . . Launcher . | . . . . . . . . . . . . . . . . . . . . . . . . Special Weapon . | . . . . . . . . . . . . . . . . . . . . . . . . Impact Weapon 2 | . . . . . 1 . . . . . . . 1 . . . . . . . . . . Slashing Weapon 3 | . . . . . . . . 1 . . . . . . . 1 . . . . . . 1 Piercing Weapon . | . . . . . . . . . . . . . . . . . . . . . . . . Special Melee Weapon . | . . . . . . . . . . . . . . . . . . . . . . . . Unidentified Prototypes 8 | . 1 . . . . . . 1 . . . 1 . . . 3 . . . 1 . . 1 Parts Lost 16 | . . . . 3 2 . . 2 . . . . 1 . . . . . 3 . . . 5 Power 2 | . . . . . 1 . . . . . . . . . . . . . . . . . 1 Propulsion 8 | . . . . 2 1 . . 1 . . . . 1 . . . . . 2 . . . 1 Utility 6 | . . . . 1 . . . 1 . . . . . . . . . . 1 . . . 3 Weapon . | . . . . . . . . . . . . . . . . . . . . . . . . Highest Loss Streak 3 | . . . . 2 2 . . 2 . . . . 1 . . . . . 3 . . . 2 To Critical Strikes . | . . . . . . . . . . . . . . . . . . . . . . . . Average Slot Usage (%) 66 | . 49 56 57 43 44 46 47 64 71 80 80 80 79 82 82 87 100 89 89 79 85 80 87 Core 2 | . . . . . 3 . . . . . . . 8 11 11 8 5 5 5 4 4 4 4 Reactor 1 | . . . . . . . . . . . . . . . . 1 5 5 5 4 4 4 4 Treads 2 | . 28 20 . . . . . . . . . . . . . . . . . . . . . Flight 20 | . . 7 28 15 16 15 15 21 26 26 26 26 24 23 23 29 35 31 31 23 23 23 24 Device 8 | . . . . . 7 7 7 11 13 13 13 13 16 17 17 14 11 10 10 10 14 13 13 Storage 1 | . . . . . . . . . . . . . . . . 3 5 5 5 4 4 4 4 Processor 12 | . 9 14 14 14 9 7 9 13 13 13 13 13 11 11 11 11 11 10 10 9 9 8 13 Hackware 3 | . . . . . . . . 4 6 6 6 6 5 5 5 5 5 5 5 5 9 8 10 Protection 8 | . 8 14 14 13 2 7 7 5 3 6 6 6 5 5 5 3 5 5 5 4 6 8 6 Impact Weapon 1 | . . . . . 5 7 7 1 . . . . 1 5 5 5 5 5 5 4 4 4 . Slashing Weapon 1 | . . . . . . . . 5 6 6 6 6 1 . . . 5 5 5 4 2 . 3 Naked Turns . | . . . . . . . . . . . . . . . . . . . . . . . . Heaviest Build 53 | . 6 3 3 3 8 7 7 7 17 17 17 19 37 30 30 34 34 34 34 34 39 39 53 Greatest Support 59 | 3 3 4 4 4 9 8 8 16 22 22 22 22 38 34 34 46 36 36 36 40 40 56 59 Greatest Overweight (x) 1 | . 1 . . . . . 1 . . . . . . . . . . . . . . . . Average Overweight (x) . | . . . . . . . . . . . . . . . . . . . . . . . . Largest Inventory Capacity 8 | 5 5 5 5 5 5 5 5 5 5 5 5 5 5 5 5 8 8 8 8 8 8 8 8 Average Capacity 5 | 5 5 5 5 5 5 5 5 5 5 5 5 5 5 5 5 6 8 8 8 8 8 8 8 Most Carried 8 | 1 3 5 5 5 4 4 5 5 5 5 5 5 5 5 5 8 8 8 8 7 6 7 8 Average Carried 5 | . 1 4 4 5 3 3 4 5 5 5 5 5 4 5 5 5 8 8 8 5 5 6 6 Final Capacity 8 | 5 5 5 5 5 5 5 5 5 5 5 5 5 5 5 5 8 8 8 8 8 8 8 8 Final Carried 8 | 1 3 5 5 5 3 4 5 5 5 5 5 5 5 5 5 8 8 8 8 5 6 6 6 Class Distribution -------------------- 57% | Mutant 24% | Sprinter 10% | Hacker-Scout 6% | Hacker-Sprinter Dominant Class ---------------- Mutant | -10/Materials Mutant | -10/Mines Mutant | -10/Exiles Mutant | -9/Mines Mutant | -8/Materials Mutant | -7/Factory Mutant | -7/DSF Mutant | -6/Factory Mutant | -6/Lower Caves Sprinter | -6/Lower Caves Sprinter | -6/Data Miner Sprinter | -5/Proximity Caves Sprinter | -5/Factory Sprinter | -5/Upper Caves Sprinter | -5/Upper Caves Sprinter | -5/Zhirov Sprinter | -4/Proximity Caves Sprinter | -4/Factory Sprinter | -4/Extension Hacker-Sprinter | -3/Research Hacker-Sprinter | -3/DSF Hacker-Sprinter | -2/Research Hacker-Scout | -1/Access Resources | -11 -10 -10 -10 -9 -8 -7 -7 -6 -6 -6 -6 -5 -5 -5 -5 -5 -4 -4 -4 -3 -3 -2 -1 ----------- Run | Scr Mat Min Exi Min Mat Fac DSF Fac Low Low Dat Pro Fac Upp Upp Zhi Pro Fac Ext Res DSF Res Acc Matter Collected 717 | 220 57 20 . . . . 1 109 50 . . 8 65 10 . . 76 . . . . . 101 Remotely . | . . . . . . . . . . . . . . . . . . . . . . . . Salvage Created 153 | . 79 . . . . . . . . . . . . . . . . . . . . . 74 Parts 11 | . 8 . . . . . . . . . . . . . . . . . . . . . 3 Haulers Intercepted . | . . . . . . . . . . . . . . . . . . . . . . . . Recyclers Shooed . | . . . . . . . . . . . . . . . . . . . . . . . . Parts Field Recycled . | . . . . . . . . . . . . . . . . . . . . . . . . Retrieved Matter . | . . . . . . . . . . . . . . . . . . . . . . . . Parts Self-Destructed 2 | . . . . . . . . . . . . 2 . . . . . . . . . . . Prevented 2 | . . . . . . . . . . . . . . . 2 . . . . . . . . Kills | -11 -10 -10 -10 -9 -8 -7 -7 -6 -6 -6 -6 -5 -5 -5 -5 -5 -4 -4 -4 -3 -3 -2 -1 ------- Run | Scr Mat Min Exi Min Mat Fac DSF Fac Low Low Dat Pro Fac Upp Upp Zhi Pro Fac Ext Res DSF Res Acc Combat Hostiles Destroyed 3 | . 3 . . . . . . . . . . . . . . . . . . . . . . Guns 3 | . 3 . . . . . . . . . . . . . . . . . . . . . . Classes Destroyed 3 | . 2 . . . . . . . . . . . . . . . . . . . . . 1 Operator 2 | . . . . . . . . . . . . . . . . . . . . . . . 2 Swarmer 2 | . 2 . . . . . . . . . . . . . . . . . . . . . . Grunt 1 | . 1 . . . . . . . . . . . . . . . . . . . . . . Best Kill Streak 3 | . 3 . . . . . . . . . . . . . . . . . . . . . 1 Combat Bots Only 3 | . 3 . . . . . . . . . . . . . . . . . . . . . . Max Kills in Single Turn 1 | . 1 . . . . . . . . . . . . . . . . . . . . . 1 Gunslinging . | . . . . . . . . . . . . . . . . . . . . . . . . Exploded . | . . . . . . . . . . . . . . . . . . . . . . . . Melee . | . . . . . . . . . . . . . . . . . . . . . . . . Uniques/NPCs Destroyed . | . . . . . . . . . . . . . . . . . . . . . . . . Combat | -11 -10 -10 -10 -9 -8 -7 -7 -6 -6 -6 -6 -5 -5 -5 -5 -5 -4 -4 -4 -3 -3 -2 -1 -------- Run | Scr Mat Min Exi Min Mat Fac DSF Fac Low Low Dat Pro Fac Upp Upp Zhi Pro Fac Ext Res DSF Res Acc Damage Taken 2646 | . 133 15 . 235 336 . 45 309 . . . 23 219 . 78 . . . 202 . 68 25 958 Core 572 | . 38 8 . 126 105 . . 118 . . . . 33 . 18 . . . 54 . . . 72 Absorbed by Shields 353 | . . . . . . . . 44 . . . . 77 . 32 . . . 72 . . . 128 Redirected to Shielding 45 | . . . . . . . . . . . . . . . . . . . . . . . 45 Core Remaining (%) 87 | 100 . . . 31 80 . 100 . . . . 86 . . . . 94 . 95 . 100 100 90 Volleys Fired 10 | . 10 . . . . . . . . . . . . . . . . . . . . . . Largest 1 | . 1 . . . . . . . . . . . . . . . . . . . . . . Hottest 23 | . 23 . . . . . . . . . . . . . . . . . . . . . . Shots Fired 10 | . 10 . . . . . . . . . . . . . . . . . . . . . . Gun 10 | . 10 . . . . . . . . . . . . . . . . . . . . . . Cannon . | . . . . . . . . . . . . . . . . . . . . . . . . Launcher . | . . . . . . . . . . . . . . . . . . . . . . . . Special . | . . . . . . . . . . . . . . . . . . . . . . . . Kinetic 10 | . 10 . . . . . . . . . . . . . . . . . . . . . . Thermal . | . . . . . . . . . . . . . . . . . . . . . . . . Explosive . | . . . . . . . . . . . . . . . . . . . . . . . . Electromagnetic . | . . . . . . . . . . . . . . . . . . . . . . . . Robot Hit Streak 5 | . 5 . . . . . . . . . . . . . . . . . . . . . . Robot Miss Streak 2 | . 2 . . . . . . . . . . . . . . . . . . . . . . Penetration Max . | . . . . . . . . . . . . . . . . . . . . . . . . Secondary Targets . | . . . . . . . . . . . . . . . . . . . . . . . . Shots Hit Robots 12 | . 7 . . . . . . . . . . . . . . . . . . . . . 5 Core Hits 5 | . 4 . . . . . . . . . . . . . . . . . . . . . 1 Critical Kills . | . . . . . . . . . . . . . . . . . . . . . . . . Critical Parts Destroyed . | . . . . . . . . . . . . . . . . . . . . . . . . Critical Strikes . | . . . . . . . . . . . . . . . . . . . . . . . . Melee Attacks 34 | . . . . . 2 . . 3 . . . . 5 . . . . . . . . 7 17 Impact 13 | . . . . . 2 . . . . . . . 3 . . . . . . . . 7 1 Slashing 21 | . . . . . . . . 3 . . . . 2 . . . . . . . . . 16 Piercing . | . . . . . . . . . . . . . . . . . . . . . . . . Sneak Attacks . | . . . . . . . . . . . . . . . . . . . . . . . . Combat Hostiles . | . . . . . . . . . . . . . . . . . . . . . . . . Follow-up Attacks . | . . . . . . . . . . . . . . . . . . . . . . . . Damage Inflicted 376 | . 95 . . . . . . . . . . . . . . . . . . . . . 281 Guns 95 | . 95 . . . . . . . . . . . . . . . . . . . . . . Cannons . | . . . . . . . . . . . . . . . . . . . . . . . . Explosions . | . . . . . . . . . . . . . . . . . . . . . . . . Melee 281 | . . . . . . . . . . . . . . . . . . . . . . . 281 Ramming . | . . . . . . . . . . . . . . . . . . . . . . . . Kinetic 95 | . 95 . . . . . . . . . . . . . . . . . . . . . . Thermal . | . . . . . . . . . . . . . . . . . . . . . . . . Explosive . | . . . . . . . . . . . . . . . . . . . . . . . . Electromagnetic . | . . . . . . . . . . . . . . . . . . . . . . . . Impact . | . . . . . . . . . . . . . . . . . . . . . . . . Slashing 281 | . . . . . . . . . . . . . . . . . . . . . . . 281 Piercing . | . . . . . . . . . . . . . . . . . . . . . . . . Highest Corruption 5 | . . . . . . . . 1 1 1 1 1 . . . . . . . . . . 5 Average Corruption 2 | . . . . . . . . 1 1 1 1 1 . . . . . . . . . . 4 Corruption Purged . | . . . . . . . . . . . . . . . . . . . . . . . . Corruption Blocked . | . . . . . . . . . . . . . . . . . . . . . . . . Effects 8 | . . . . . . . . 1 . . . 1 . . . . . . . . . . 6 Message Errors 2 | . . . . . . . . 1 . . . . . . . . . . . . . . 1 Matter Fused 5 | . . . . . . . . . . . . 1 . . . . . . . . . . 4 Heat Flow Errors 1 | . . . . . . . . . . . . . . . . . . . . . . . 1 Overload Shots . | . . . . . . . . . . . . . . . . . . . . . . . . Overflow Damage 95 | . . . . . . . . . . . . . . . . . . . . . . . 95 Projectiles . | . . . . . . . . . . . . . . . . . . . . . . . . Explosions . | . . . . . . . . . . . . . . . . . . . . . . . . Melee 95 | . . . . . . . . . . . . . . . . . . . . . . . 95 Knockbacks . | . . . . . . . . . . . . . . . . . . . . . . . . Impact . | . . . . . . . . . . . . . . . . . . . . . . . . Kinetic . | . . . . . . . . . . . . . . . . . . . . . . . . Secondary . | . . . . . . . . . . . . . . . . . . . . . . . . Self-Inflicted Damage . | . . . . . . . . . . . . . . . . . . . . . . . . Shots . | . . . . . . . . . . . . . . . . . . . . . . . . Rammed 1 | . 1 . . . . . . . . . . . . . . . . . . . . . . Targets Rammed 1 | . 1 . . . . . . . . . . . . . . . . . . . . . . Kicked . | . . . . . . . . . . . . . . . . . . . . . . . . Crushed . | . . . . . . . . . . . . . . . . . . . . . . . . Highest Temperature 266 | . . . . . 2 . . . . . . . 45 1 26 58 104 12 14 . . 84 266 Average Temperature 28 | . . . . . 2 . . . . . . . 12 1 7 31 46 4 4 . . 27 39 Received Heat Transfer 491 | . 12 . . 120 162 . . 12 . . . 9 50 . 48 . . . 6 . . . 72 Siege Activations . | . . . . . . . . . . . . . . . . . . . . . . . . Robots Corrupted . | . . . . . . . . . . . . . . . . . . . . . . . . Combat Hostiles . | . . . . . . . . . . . . . . . . . . . . . . . . Parts Fried . | . . . . . . . . . . . . . . . . . . . . . . . . Impact Corruptions . | . . . . . . . . . . . . . . . . . . . . . . . . Robots Melted . | . . . . . . . . . . . . . . . . . . . . . . . . Combat Hostiles . | . . . . . . . . . . . . . . . . . . . . . . . . Parts Melted . | . . . . . . . . . . . . . . . . . . . . . . . . Heat Transferred . | . . . . . . . . . . . . . . . . . . . . . . . . Parts Sabotaged . | . . . . . . . . . . . . . . . . . . . . . . . . Parts Stolen . | . . . . . . . . . . . . . . . . . . . . . . . . Parts Stripped . | . . . . . . . . . . . . . . . . . . . . . . . . Power Chain Reactions . | . . . . . . . . . . . . . . . . . . . . . . . . Missiles Intercepted . | . . . . . . . . . . . . . . . . . . . . . . . . Alert | -11 -10 -10 -10 -9 -8 -7 -7 -6 -6 -6 -6 -5 -5 -5 -5 -5 -4 -4 -4 -3 -3 -2 -1 ------- Run | Scr Mat Min Exi Min Mat Fac DSF Fac Low Low Dat Pro Fac Upp Upp Zhi Pro Fac Ext Res DSF Res Acc Peak Influence 428 | . 145 130 . 185 171 96 67 197 . . . . 109 . . . . 15 42 64 48 72 428 Initial 77 | . . 56 . . . 77 67 35 . . . . 51 . . . . . 7 11 48 27 43 Average 94 | . 65 82 . 94 25 83 67 67 . . . . 68 . . . . 5 11 27 48 39 247 Maximum Alert Level 2 | . . . . . . . . . . . . . . . . . . . . . . . 2 Low Security (%) 90 | 100 100 100 . 100 100 100 100 100 . . . . 100 . . . . 100 100 100 100 100 36 Level 1 8 | . . . . . . . . . . . . . . . . . . . . . . . 61 Level 2 . | . . . . . . . . . . . . . . . . . . . . . . . 1 Level 3 . | . . . . . . . . . . . . . . . . . . . . . . . . Level 4 . | . . . . . . . . . . . . . . . . . . . . . . . . Level 5 . | . . . . . . . . . . . . . . . . . . . . . . . . High Security . | . . . . . . . . . . . . . . . . . . . . . . . . Max Security . | . . . . . . . . . . . . . . . . . . . . . . . . Squads Dispatched 10 | . 1 . . . . . . 2 . . . . 1 . 1 . . . 1 . 1 . 3 Investigation 2 | . . . . . . . . . . . . . . . . . . . 1 . . . 1 Extermination 1 | . . . . . . . . 1 . . . . . . . . . . . . . . . Reinforcement 6 | . 1 . . . . . . 1 . . . . 1 . . . . . . . 1 . 2 Assault 1 | . . . . . . . . . . . . . . . 1 . . . . . . . . Garrison . | . . . . . . . . . . . . . . . . . . . . . . . . Intercept . | . . . . . . . . . . . . . . . . . . . . . . . . Construction Impeded . | . . . . . . . . . . . . . . . . . . . . . . . . Haulers Reinforced . | . . . . . . . . . . . . . . . . . . . . . . . . Active Scanning Responses . | . . . . . . . . . . . . . . . . . . . . . . . . Cargo Convoy Interrupts . | . . . . . . . . . . . . . . . . . . . . . . . . Stealth | -11 -10 -10 -10 -9 -8 -7 -7 -6 -6 -6 -6 -5 -5 -5 -5 -5 -4 -4 -4 -3 -3 -2 -1 --------- Run | Scr Mat Min Exi Min Mat Fac DSF Fac Low Low Dat Pro Fac Upp Upp Zhi Pro Fac Ext Res DSF Res Acc Distress Signals 1 | . . . . . . . . . . . . . . . . . . . . . . . 1 Communications Jammed . | . . . . . . . . . . . . . . . . . . . . . . . . Distress Signals . | . . . . . . . . . . . . . . . . . . . . . . . . Times Spotted 155 | . 8 3 . 24 18 . 1 25 . . . 6 3 . 10 . . 1 4 . 1 2 49 Peak Tracking Total 24 | . 6 3 . 12 16 . 1 11 . . . 5 3 . 18 . . 1 5 . 1 2 24 Tactical Retreats 20 | . 1 . . 3 2 . . 6 . . . 1 1 . 3 . . . . . . 1 2 Traps | -11 -10 -10 -10 -9 -8 -7 -7 -6 -6 -6 -6 -5 -5 -5 -5 -5 -4 -4 -4 -3 -3 -2 -1 ------- Run | Scr Mat Min Exi Min Mat Fac DSF Fac Low Low Dat Pro Fac Upp Upp Zhi Pro Fac Ext Res DSF Res Acc Traps Triggered 10 | . . . . . . . 3 1 . . . . 4 . . . . . . . . 1 1 Indirectly . | . . . . . . . . . . . . . . . . . . . . . . . . Trap Hack Attempts . | . . . . . . . . . . . . . . . . . . . . . . . . Triggered . | . . . . . . . . . . . . . . . . . . . . . . . . Disarmed . | . . . . . . . . . . . . . . . . . . . . . . . . Reprogrammed . | . . . . . . . . . . . . . . . . . . . . . . . . Reused . | . . . . . . . . . . . . . . . . . . . . . . . . Traps Extracted . | . . . . . . . . . . . . . . . . . . . . . . . . Installed . | . . . . . . . . . . . . . . . . . . . . . . . . Triggered 5 | . . . . . . . . . . 2 . . . . 2 . 1 . . . . . . Machines | -11 -10 -10 -10 -9 -8 -7 -7 -6 -6 -6 -6 -5 -5 -5 -5 -5 -4 -4 -4 -3 -3 -2 -1 ---------- Run | Scr Mat Min Exi Min Mat Fac DSF Fac Low Low Dat Pro Fac Upp Upp Zhi Pro Fac Ext Res DSF Res Acc Machines Disabled . | . . . . . . . . . . . . . . . . . . . . . . . . Max in Single Turn . | . . . . . . . . . . . . . . . . . . . . . . . . Machines Sabotaged . | . . . . . . . . . . . . . . . . . . . . . . . . Garrisons Compromised . | . . . . . . . . . . . . . . . . . . . . . . . . Overloaded Fab Kills . | . . . . . . . . . . . . . . . . . . . . . . . . Hacking | -11 -10 -10 -10 -9 -8 -7 -7 -6 -6 -6 -6 -5 -5 -5 -5 -5 -4 -4 -4 -3 -3 -2 -1 --------- Run | Scr Mat Min Exi Min Mat Fac DSF Fac Low Low Dat Pro Fac Upp Upp Zhi Pro Fac Ext Res DSF Res Acc Machines Accessed 41 | . 3 . 1 . 1 3 . 6 . . 4 . 1 . 1 4 . . 1 4 . 2 10 Terminals 25 | . 1 . . . 1 2 . 5 . . . . . . . . . . 1 4 . 1 10 Fabricators 1 | . . . . . . . . . . . . . . . . . . . . . . 1 . Repair Stations 2 | . 1 . . . . 1 . . . . . . . . . . . . . . . . . Recycling Units 3 | . 1 . . . . . . 1 . . . . 1 . . . . . . . . . . Scanalyzers . | . . . . . . . . . . . . . . . . . . . . . . . . Garrison Access . | . . . . . . . . . . . . . . . . . . . . . . . . Total Hacks 134 | . 9 . 1 . 1 5 . 11 . . 27 . 2 . 1 17 . . 3 10 . 4 43 Successful 72 | . 1 . 1 . 1 2 . 5 . . 27 . 1 . 1 17 . . . 3 . 3 10 Failed 62 | . 8 . . . . 3 . 6 . . . . 1 . . . . . 3 7 . 1 33 Catastrophic 17 | . 1 . . . . . . . . . . . . . . . . . 1 3 . . 12 Database Lockouts . | . . . . . . . . . . . . . . . . . . . . . . . . Manual 12 | . . . 1 . . . . 1 . . . . . . . . . . . 3 . 1 6 Terminals 73 | . 2 . . . 1 3 . 9 . . . . . . . . . . 3 10 . 2 43 Fabricators 2 | . . . . . . . . . . . . . . . . . . . . . . 2 . Repair Stations 5 | . 3 . . . . 2 . . . . . . . . . . . . . . . . . Recycling Units 8 | . 4 . . . . . . 2 . . . . 2 . . . . . . . . . . Scanalyzers . | . . . . . . . . . . . . . . . . . . . . . . . . Garrison Access . | . . . . . . . . . . . . . . . . . . . . . . . . Terminal Hacks 67 | . . . 1 . 1 2 . 4 . . 27 . . . 1 17 . . . 3 . 1 10 Record 16 | . . . . . . . . . . . 11 . . . . 5 . . . . . . . Part Schematic 13 | . . . . . . . . . . . 9 . . . . 4 . . . . . . . Robot Schematic 4 | . . . . . . . . . . . 4 . . . . . . . . . . . . Robot Analysis 4 | . . . . . . . . . . . . . . . . 4 . . . . . . . Prototype ID Bank 8 | . . . . . . . . 1 . . 3 . . . . 4 . . . . . . . Open Door 2 | . . . . . . . . . . . . . . . 1 . . . . . . . 1 Open DSF 2 | . . . . . . 1 . . . . . . . . . . . . . 1 . . . Level Access Points 2 | . . . . . 1 . . . . . . . . . . . . . . . . . 1 Branch Access Points 2 | . . . . . . . . 1 . . . . . . . . . . . . . . 1 Emergency Access Points 1 | . . . . . . . . . . . . . . . . . . . . . . . 1 Unreport Threat 1 | . . . . . . . . . . . . . . . . . . . . . . . 1 Locate Traps 8 | . . . . . . 1 . 2 . . . . . . . . . . . 1 . 1 3 Zone Layout 3 | . . . . . . . . . . . . . . . . . . . . 1 . . 2 EX-Prototype ID Bank 1 | . . . 1 . . . . . . . . . . . . . . . . . . . . Fabricator Hacks 2 | . . . . . . . . . . . . . . . . . . . . . . 2 . Load Schematic 1 | . . . . . . . . . . . . . . . . . . . . . . 1 . Build 1 | . . . . . . . . . . . . . . . . . . . . . . 1 . Repair Station Hacks . | . . . . . . . . . . . . . . . . . . . . . . . . Recycling Unit Hacks 3 | . 1 . . . . . . 1 . . . . 1 . . . . . . . . . . Retrieve Components 3 | . 1 . . . . . . 1 . . . . 1 . . . . . . . . . . Scanalyzer . | . . . . . . . . . . . . . . . . . . . . . . . . Garrison Access Hacks . | . . . . . . . . . . . . . . . . . . . . . . . . Unauthorized Hacks . | . . . . . . . . . . . . . . . . . . . . . . . . Terminals . | . . . . . . . . . . . . . . . . . . . . . . . . Fabricators . | . . . . . . . . . . . . . . . . . . . . . . . . Repair Stations . | . . . . . . . . . . . . . . . . . . . . . . . . Recycling Units . | . . . . . . . . . . . . . . . . . . . . . . . . Scanalyzers . | . . . . . . . . . . . . . . . . . . . . . . . . Garrison Access . | . . . . . . . . . . . . . . . . . . . . . . . . Data Cores Recovered 1 | . . . . . . . . . . . . . . . . . . . . . . . 1 Used . | . . . . . . . . . . . . . . . . . . . . . . . . Hacking Detections 24 | . 3 . . . . 2 . 4 . . . . 1 . . . . . 1 3 . . 10 Full Trace Events 2 | . . . . . . . . . . . . . . . . . . . 1 . . . 1 Feedback Events . | . . . . . . . . . . . . . . . . . . . . . . . . Feedback Blocked . | . . . . . . . . . . . . . . . . . . . . . . . . Robot Schematics Acquired 4 | . . . . . . . . . . . 4 . . . . . . . . . . . . Robots Built . | . . . . . . . . . . . . . . . . . . . . . . . . Authchips . | . . . . . . . . . . . . . . . . . . . . . . . . Time . | . . . . . . . . . . . . . . . . . . . . . . . . Total Robot Build Rating . | . . . . . . . . . . . . . . . . . . . . . . . . Part Schematics Acquired 13 | . . . . . . . . . . . 9 . . . . 4 . . . . . . . Parts Built 1 | . . . . . . . . . . . . . . . . . . . . . . 1 . Authchips 1 | . . . . . . . . . . . . . . . . . . . . . . 1 . Time 62 | . . . . . . . . . . . . . . . . . . . . . . 62 . Total Part Build Rating 7 | . . . . . . . . . . . . . . . . . . . . . . 7 . Parts Repaired . | . . . . . . . . . . . . . . . . . . . . . . . . Time . | . . . . . . . . . . . . . . . . . . . . . . . . Parts Recycled . | . . . . . . . . . . . . . . . . . . . . . . . . Recycled Matter . | . . . . . . . . . . . . . . . . . . . . . . . . Retrieved Matter . | . . . . . . . . . . . . . . . . . . . . . . . . Retrieved Components 2 | . . . . . . . . 1 . . . . 1 . . . . . . . . . . Parts Scanalyzed . | . . . . . . . . . . . . . . . . . . . . . . . . Part Schematics Acquired . | . . . . . . . . . . . . . . . . . . . . . . . . Parts Damaged . | . . . . . . . . . . . . . . . . . . . . . . . . Bothacking | -11 -10 -10 -10 -9 -8 -7 -7 -6 -6 -6 -6 -5 -5 -5 -5 -5 -4 -4 -4 -3 -3 -2 -1 ------------ Run | Scr Mat Min Exi Min Mat Fac DSF Fac Low Low Dat Pro Fac Upp Upp Zhi Pro Fac Ext Res DSF Res Acc Used RIF Installer . | . . . . . . . . . . . . . . . . . . . . . . . . Robots Hacked . | . . . . . . . . . . . . . . . . . . . . . . . . Non-combat . | . . . . . . . . . . . . . . . . . . . . . . . . Combat . | . . . . . . . . . . . . . . . . . . . . . . . . Robot Hacks Applied . | . . . . . . . . . . . . . . . . . . . . . . . . Relay Couplers Released . | . . . . . . . . . . . . . . . . . . . . . . . . Fabnet Peak Effective % . | . . . . . . . . . . . . . . . . . . . . . . . . Robots Rewired . | . . . . . . . . . . . . . . . . . . . . . . . . Allies Hacked . | . . . . . . . . . . . . . . . . . . . . . . . . Hacks Repelled . | . . . . . . . . . . . . . . . . . . . . . . . . Allies | -11 -10 -10 -10 -9 -8 -7 -7 -6 -6 -6 -6 -5 -5 -5 -5 -5 -4 -4 -4 -3 -3 -2 -1 -------- Run | Scr Mat Min Exi Min Mat Fac DSF Fac Low Low Dat Pro Fac Upp Upp Zhi Pro Fac Ext Res DSF Res Acc Total Allies 2 | . . 1 . . . . . . . . . 1 . . . . . . . . . . . Largest Group 1 | . . 1 1 . . . . . . . . 1 . . . . . . . . . . . Highest-Rated Group 96 | . . 31 28 . . . . . . . . 96 . . . . . . . . . . . Highest-Rated Ally 96 | . . 31 28 . . . . . . . . 96 . . . . . . . . . . . Total Orders . | . . . . . . . . . . . . . . . . . . . . . . . . Ally Attacks 29 | . . 13 . . . . . . . . . 16 . . . . . . . . . . . Total Damage 842 | . . 129 . . . . . . . . . 713 . . . . . . . . . . . Kills 6 | . . 3 . . . . . . . . . 3 . . . . . . . . . . . Allies Corrupted . | . . . . . . . . . . . . . . . . . . . . . . . . Allies Melted . | . . . . . . . . . . . . . . . . . . . . . . . . Intel | -11 -10 -10 -10 -9 -8 -7 -7 -6 -6 -6 -6 -5 -5 -5 -5 -5 -4 -4 -4 -3 -3 -2 -1 ------- Run | Scr Mat Min Exi Min Mat Fac DSF Fac Low Low Dat Pro Fac Upp Upp Zhi Pro Fac Ext Res DSF Res Acc Robot Analysis Total 4 | . . . . . . . . . . . . . . . . 4 . . . . . . . Derelict Logs Recovered 9 | . . 2 . 1 . . . . . 1 . . . 2 2 . 1 . . . . . . Drone Launches . | . . . . . . . . . . . . . . . . . . . . . . . . Drone Recoveries . | . . . . . . . . . . . . . . . . . . . . . . . . Exploration | -11 -10 -10 -10 -9 -8 -7 -7 -6 -6 -6 -6 -5 -5 -5 -5 -5 -4 -4 -4 -3 -3 -2 -1 ------------- Run | Scr Mat Min Exi Min Mat Fac DSF Fac Low Low Dat Pro Fac Upp Upp Zhi Pro Fac Ext Res DSF Res Acc Turns Passed 3593 | 19 136 285 230 608 133 77 73 459 52 61 28 162 137 125 97 62 138 26 27 62 18 197 381 Spaces Moved 7377 | 30 209 419 215 269 303 204 65 1195 138 195 89 419 251 401 312 147 370 92 97 224 63 414 1256 Core 631 | 30 209 385 . 7 . . . . . . . . . . . . . . . . . . . Treads . | . . . . . . . . . . . . . . . . . . . . . . . . Legs . | . . . . . . . . . . . . . . . . . . . . . . . . Wheels . | . . . . . . . . . . . . . . . . . . . . . . . . Hover . | . . . . . . . . . . . . . . . . . . . . . . . . Flight 6746 | . . 34 215 262 303 204 65 1195 138 195 89 419 251 401 312 147 370 92 97 224 63 414 1256 Fastest Speed 23 | 50 50 40 40 40 34 37 37 34 31 31 31 31 28 31 31 23 28 28 28 25 25 23 23 Average Speed 32 | 50 50 49 40 40 36 37 52 36 33 31 31 31 30 31 31 28 28 28 28 25 25 24 25 Slowest Speed 120 | 50 100 50 40 50 40 37 120 37 34 31 31 31 31 31 31 31 28 28 30 25 25 25 26 Overloaded Moves . | . . . . . . . . . . . . . . . . . . . . . . . . Propulsion Burnouts . | . . . . . . . . . . . . . . . . . . . . . . . . Robots Hopped 68 | . . . . 19 4 1 1 15 . . . . 1 . . . . 3 . 3 . 1 20 Cave-ins Triggered . | . . . . . . . . . . . . . . . . . . . . . . . . Teleports 1 | . . . . . . . . . . . . . . . . . . . . . . . 1 Exploration Rate (%) 44 | 4 50 51 61 45 40 5 82 50 35 42 76 60 9 74 57 61 66 6 28 12 90 18 49 Regions Visited 23 Branch Regions 12 Pre-discovered Areas 8 | . . 1 . . . . . . . . 1 . . . 2 3 1 . . . . . . Known Exits Taken 20 | . 1 1 1 1 1 1 . 1 1 1 1 1 1 1 1 1 1 1 1 1 . 1 . Unknown Exits Taken 1 | 1 . . . . . . . . . . . . . . . . . . . . . . . Scrap Searched 10 | . . 1 . . . . . . 3 1 . . . 1 1 . 3 . . . . . . Spaces Dug 22 | . . . . . 2 . . 3 . . . . 4 . . . . . . . . 5 8 Terrain Destroyed 22 | . . . . . 2 . . 3 . . . . 4 . . . . . . . . 5 8 Melee 22 | . . . . . 2 . . 3 . . . . 4 . . . . . . . . 5 8 Projectile . | . . . . . . . . . . . . . . . . . . . . . . . . AOE . | . . . . . . . . . . . . . . . . . . . . . . . . Terrain Rammed . | . . . . . . . . . . . . . . . . . . . . . . . . Walls Destroyed . | . . . . . . . . . . . . . . . . . . . . . . . . Machines Disabled . | . . . . . . . . . . . . . . . . . . . . . . . . Actions | -11 -10 -10 -10 -9 -8 -7 -7 -6 -6 -6 -6 -5 -5 -5 -5 -5 -4 -4 -4 -3 -3 -2 -1 --------- Run | Scr Mat Min Exi Min Mat Fac DSF Fac Low Low Dat Pro Fac Upp Upp Zhi Pro Fac Ext Res DSF Res Acc Total 8369 | 32 227 497 358 749 315 203 101 1198 141 194 88 450 301 400 311 163 403 88 96 225 64 494 1271 Wait 850 | . 2 73 142 500 8 . . . . . . 30 . . . . 34 . . . . 60 1 Move 7227 | 29 208 418 214 236 294 201 62 1165 137 194 88 418 248 400 311 146 369 87 96 217 62 411 1216 Hop 58 | . . . . 13 4 1 1 14 . . . . 1 . . . . 1 . 3 . 1 19 Pick Up 16 | 1 2 2 1 . . 1 1 . . . . . 1 . . 3 . . . . . 1 3 Fast Attach 47 | 2 3 2 . . 5 . 1 6 3 . . 1 3 . . 7 . . . 2 1 3 8 Attach 11 | . . . . . 2 . . . . . . . 2 . . 1 . . . 3 . 1 2 Detach 4 | . . . . . . . . . . . . . 1 . . 1 . . . . 1 1 . Swap 7 | . . . . . . . . 1 . . . . 2 . . 2 . . . . . . 2 Drop 15 | . 1 2 1 . . . . 1 1 . . 1 2 . . 3 . . . . . . 3 Fire 10 | . 10 . . . . . . . . . . . . . . . . . . . . . . Melee 34 | . . . . . 2 . . 3 . . . . 5 . . . . . . . . 7 17 Ram . | . . . . . . . . . . . . . . . . . . . . . . . . Kick . | . . . . . . . . . . . . . . . . . . . . . . . . Crush 1 | . 1 . . . . . . . . . . . . . . . . . . . . . . Escape Stasis 89 | . . . . . . . 36 8 . . . . 36 . . . . . . . . 9 . Rewire . | . . . . . . . . . . . . . . . . . . . . . . . . Trap . | . . . . . . . . . . . . . . . . . . . . . . . . Miscellaneous . | . . . . . . . . . . . . . . . . . . . . . . . . Route ------- -11/Scrapyard -10/Materials -10/Mines (discovered 3 exits: *Mat x2 / *Exi) -10/Exiles (discovered 2 exits: *Min x2) -9/Mines -8/Materials (discovered 3 exits: *Fac x3) -7/Factory -7/DSF -6/Factory (discovered 4 exits: *Fac x2 / *Low x2) -6/Lower Caves -6/Lower Caves (discovered 2 exits: Fac / *Dat) -6/Data Miner -5/Proximity Caves -5/Factory (discovered 2 exits: *Fac / *Upp) -5/Upper Caves -5/Upper Caves -5/Zhirov -4/Proximity Caves -4/Factory -4/Extension -3/Research -3/DSF -2/Research -1/Access (discovered 2 exits: *Sur / Com) To Epsilon Eridani History --------- Turn | Location | Event 4 | -11/Scrapyard | Discovered new exit (range 16) 20 | -11/Scrapyard | Entered Materials 147 | -10/Materials | Discovered new exit (range 15) 155 | -10/Materials | Identified exit to Mines 156 | -10/Materials | Entered Mines 173 | -10/Mines | YI-UF0 nonchalantly dropped a Grenade Launcher on the ground 178 | -10/Mines | Learned Materials stockpile data 277 | -10/Mines | Deemed a non-threat by the Exiles lab entrance 277 | -10/Mines | Discovered new exit (range 5) 298 | -10/Mines | Discovered new exit (range 9) 302 | -10/Mines | Received a Mining Laser from a helpful Derelict 302 | -10/Mines | Identified exit to Materials 308 | -10/Mines | Build established: Mutant 320 | -10/Mines | Learned location of Zion (-7) 321 | -10/Mines | Discovered exit to Materials (range 6) 387 | -10/Mines | Identified exit to Exiles 441 | -10/Mines | Entered Exiles 441 | -10/Exiles | Accompanied by 1 ally 447 | -10/Exiles | Discovered new exit (range 15) 452 | -10/Exiles | Met 8R-AWN 458 | -10/Exiles | Met EX-HEX 472 | -10/Exiles | Met EX-BIN 476 | -10/Exiles | Aligned with FarCom system 477 | -10/Exiles | Given EX-Vault access code 486 | -10/Exiles | Opened EX-Vault 490 | -10/Exiles | Found Chronowheel 499 | -10/Exiles | Warned to stay clear of 0b10 Research branches 511 | -10/Exiles | Met EX-DEC 525 | -10/Exiles | Discovered new exit (range 10) 528 | -10/Exiles | Identified exit to Mines 671 | -10/Exiles | Left Exiles lab with Chronowheel 671 | -10/Exiles | Entered Mines 680 | -9/Mines | Learned Materials interactive machine intel 784 | -9/Mines | Excavation squad dispatched 784 | -9/Mines | A large section of the Mines collapsed 1034 | -9/Mines | Excavation squad dispatched 1272 | -9/Mines | Core integrity fell below 50% 1276 | -9/Mines | Discovered new exit (range 8) 1279 | -9/Mines | Identified exit to Materials 1279 | -9/Mines | Entered Materials 1279 | -8/Materials | Evolved 4 slots: Propulsion x2, Utility x2 1280 | -8/Materials | Loaded intel: 18 interactive machine locations 1307 | -8/Materials | Identified exit to Factory 1412 | -8/Materials | Entered Factory 1412 | -7/Factory | Evolved 2 slots: Propulsion x1, Utility x1 1488 | -7/Factory | Identified exit to DSF 1489 | -7/Factory | Entered DSF 1556 | -7/DSF | Discovered new exit (range 16) 1561 | -7/DSF | Identified exit to Factory 1562 | -7/DSF | Entered Factory 1562 | -6/Factory | Evolved 2 slots: Power x1, Utility x1 1838 | -6/Factory | Spotted B-75 Beast 1965 | -6/Factory | Discovered new exit (range 17) 1965 | -6/Factory | Identified exit to Lower Caves 1990 | -6/Factory | Identified exit to Factory 2000 | -6/Factory | Discovered exit to Factory (range 5) 2021 | -6/Factory | Entered Lower Caves 2062 | -6/Lower Caves | Discovered new exit (range 8) 2064 | -6/Lower Caves | Identified exit to Lower Caves 2073 | -6/Lower Caves | Entered another Lower Caves area 2073 | -6/Lower Caves | Discovered exit to Factory (range 17) 2105 | -6/Lower Caves | Learned location of 1 exit from Factory 2129 | -6/Lower Caves | Discovered new exit (range 17) 2133 | -6/Lower Caves | Identified exit to Data Miner 2134 | -6/Lower Caves | Entered Data Miner 2134 | -6/Data Miner | Discovered new exit (range 6) 2139 | -6/Data Miner | Met Data Miner 2149 | -6/Data Miner | Learned location of Section 7 (-2) 2149 | -6/Data Miner | Acquired the access code to Warlord's prototype stash 2153 | -6/Data Miner | Received God Mode back door access code from Data Miner 2161 | -6/Data Miner | Identified exit to Proximity Caves 2162 | -6/Data Miner | Entered Proximity Caves 2193 | -5/Proximity Caves | Escorted by Enhanced Grunt 2233 | -5/Proximity Caves | Spotted B-75 Beast 2238 | -5/Proximity Caves | Found Prototype Device 2238 | -5/Proximity Caves | Identified Exp. Thermal Shield 2239 | -5/Proximity Caves | Attracted the attention of an 0b10 checkpoint 2322 | -5/Proximity Caves | Discovered exit to Factory (range 7) 2324 | -5/Proximity Caves | Entered Factory 2324 | -5/Factory | Evolved 2 slots: Propulsion x1, Utility x1 2325 | -5/Factory | Identified exit to Upper Caves 2382 | -5/Factory | Spotted B-75 Beast 2407 | -5/Factory | Build established: Sprinter 2419 | -5/Factory | Discovered new exit (range 14) 2423 | -5/Factory | Identified exit to Factory 2461 | -5/Factory | Entered Upper Caves 2489 | -5/Upper Caves | Learned Factory emergency access door positions 2568 | -5/Upper Caves | Learned Factory terminal intel 2576 | -5/Upper Caves | Discovered new exit (range 19) 2585 | -5/Upper Caves | Identified exit to Upper Caves 2586 | -5/Upper Caves | Entered another Upper Caves area 2652 | -5/Upper Caves | Attracted the attention of an 0b10 outpost 2667 | -5/Upper Caves | Learned location of Armory (-3) 2681 | -5/Upper Caves | Encountered a Warlord checkpoint 2681 | -5/Upper Caves | Discovered new exit (range 8) 2683 | -5/Upper Caves | Identified exit to Zhirov 2683 | -5/Upper Caves | Entered Zhirov 2683 | -5/Zhirov | Discovered new exit (range 3) 2695 | -5/Zhirov | Learned location of Quarantine (-2) 2695 | -5/Zhirov | Learned location of Testing (-3) 2695 | -5/Zhirov | Learned location of Command (-1) 2704 | -5/Zhirov | Found Alien Artifact 2704 | -5/Zhirov | Identified Integrated Reactor 2704 | -5/Zhirov | Installed Integrated Reactor, increased core energy generation (+10) 2729 | -5/Zhirov | Found Alien Artifact 2745 | -5/Zhirov | Identified exit to Proximity Caves 2745 | -5/Zhirov | Entered Proximity Caves 2745 | -4/Proximity Caves | Spotted B-86 Titan 2881 | -4/Proximity Caves | Discovered exit to Factory (range 5) 2883 | -4/Proximity Caves | Entered Factory 2883 | -4/Factory | Evolved 2 slots: Utility x2 2885 | -4/Factory | Loaded intel: 28 terminal locations 2906 | -4/Factory | Discovered new exit (range 10) 2909 | -4/Factory | Identified exit to Extension 2909 | -4/Factory | Entered Extension 2930 | -4/Extension | Spotted B-86 Titan 2931 | -4/Extension | Spotted B-86 Titan 2936 | -4/Extension | Discovered new exit (range 1) 2936 | -4/Extension | Identified exit to Research 2936 | -4/Extension | Entered Research 2936 | -3/Research | Evolved 2 slots: Utility x2 2967 | -3/Research | Lost 3 parts (2n1u) 2987 | -3/Research | Identified exit to DSF 2998 | -3/Research | Entered DSF 3012 | -3/DSF | Discovered new exit (range 15) 3014 | -3/DSF | Additional patrols routed to DSF 3016 | -3/DSF | Identified exit to Research 3016 | -3/DSF | Entered Research 3016 | -2/Research | Evolved 2 slots: Propulsion x1, Utility x1 3085 | -2/Research | Fabricated Exp. Optical Array? 3164 | -2/Research | Spotted B-90 Cyclops 3209 | -2/Research | Discovered new exit (range 8) 3210 | -2/Research | Identified exit to Access 3213 | -2/Research | Entered Access 3213 | -1/Access | Evolved 2 slots: Propulsion x1, Utility x1 3246 | -1/Access | Identified exit to Command 3413 | -1/Access | Spotted B-99 Colossus 3418 | -1/Access | Identified Transdimensional Reconstructor 3418 | -1/Access | Warped through subspace 3531 | -1/Access | Build established: Hacker-Scout 3577 | -1/Access | Identified exit to Surface 3594 | *** | Escaped! Last Messages --------------- >>Traps(Locate) Found 1 trap in 1 array: 1x Alarm Trap Map updated. 03563_ System corrupted: Matter fused (-10). 03564_ Penetrated by Slug. 03575_ >> Machine Analyzer network decryption results: 03575_ Terminal x1 03577_ Connecting with Terminal... >>Access(Main) Found 1 level access point to Surface: (252,77) Map updated. 03578_ Imp. System Shield destroyed. 03578_ Critical hit (Blast). 03583_ System corrupted: Matter fused (-6). 03584_ Connecting with Terminal... >>Open(Door) Sealed Barrier opened. 03592_ The Access Shell folds into the floor. Map ----- +----------------------------------------------------+ | ??????????????????????????############## #????? | | ?????????????????????""???????# #????? | | ####?????????????????"""??????# #????? | | #??????????????????T"??????# #????? | | +?????????????????"""??????# #????? | | #???"""?"""???????""???????# ###????? | | +???"""S"""????????????????# " #??????? | | #??????????????????????????# """ #??????? | | #??????????????????????????# """ #??????? | | ##??????#+#????????? ##### " #??????? | | ######## ####### w ??????? | | #??????? | | H ? ! #??????? | | #?????????? ########??????? | | #+######### #?????????? #########??????????????? | | #???# #?????????##????????????????????????? | | #???# #???????????????????????????????????? | | #???# #???????????????????????????????????? | | #???# #?????###???????????????????????????? | | #???# ####### ##########??????????????????? | | #???# """T""" "??????????????????? | | "T"" #???# """ """ "????BB????????????? | | """" #???# k "????BB????????????? | | #######???# "??????????????????? | | ??????????# "" "??????????????????? | | ??????????# @" "??????????????????? | | ??????????# "??????????????????? | | ??????????# "????BB????????????? | | ??????????# "????BB????????????? | | ??????????# "??????????????????? | | ??????????# t####### ##########??????????????????? | | ??????????# #?????###???????????????????????????? | | ??????????# #???????????????????????????????????? | | ??????"???# #???????????????????????????????????? | | ?????"""??# ????????????????????????????????????? | | ????"""???+ ????????????????????????????????????? | | ?????"????# ????????????????????????????????????? | | ??????????# ????????????????????????????????????? | | ??????????# ????????????????????????????????????? | | ??????????# ????????????????????????????????????? | | ??????????# ????????????????????????????????????? | | ??????????# ????????????????????????????????????? | | ??????????# ????????????????????????????????????? | | ??????????? ????????????????????????????????????? | | ?????????????????????????????????????????????????? | | ?????????????????????????????????????????????????? | | ?????????????????????????????????????????????????? | | ?????????????????????????????????????????????????? | | ?????????????????????????????????????????????????? | | ?????????????????????????????????????????????????? | +----------------------------------------------------+ Best States ------------- Heat Dissipation 52 Energy Generation 45 Energy Capacity 845 Matter Stores 300 Matter Capacity 300 Sight Range 23 Terrain Scan Density 10 Additional Mass Support 12 Corruption Block 20 Armor Coverage 225 Resistance: TH 30 Core Shielding 40 Evasion (%) 65 Defensive Hacking 50 Authchip Count 1 Item Schematics ----------------- Combat Drone Bay | -6/Data Miner | Free Lgt. Regenerative Plating | -6/Data Miner | Free Cld. Nuclear Pulse Thruster | -6/Data Miner | Free Prc. Matter Filter | -6/Data Miner | Free Hvy. Gatling Laser | -6/Data Miner | Free Imp. Antigrav System | -6/Data Miner | Free Adv. Coolant Injector | -6/Data Miner | Free Hardcell Cannon | -6/Data Miner | Free Adv. Medium Treads | -6/Data Miner | Free Assault Drone Bay | -5/Zhirov | Free Exp. Heat Sink | -5/Zhirov | Free Exp. Optical Array | -5/Zhirov | Free Imp. Arc Thrower | -5/Zhirov | Free Robot Schematics ------------------ L-41 Fighter | -6/Data Miner | Free S-27 Virus | -6/Data Miner | Free M-22 Extractor | -6/Data Miner | Free L-61 Swordsman | -6/Data Miner | Free Fabricated ------------ Exp. Optical Array | x1 | -2/Research | Authchip Alien Tech Used ----------------- Integrated Reactor Transdimensional Reconstructor Achievements -------------- None Challenges ------------ None Game ------ Seed WardroneReactionCompressor Manual? 0 Play Time 01:10:43 Cumulative 633.9 hours Start 2022.02.25 @ 18:51:42 End 2022.02.28 @ 12:40:35 Sessions 5 Manual Loads 0 Difficulty Rogue Special Mode None Game No. 481 Rogue 481 Adventurer 0 Explorer 0 Win Type 0 Total 164 Types 91/9/47/6/3/2/4/1/1 Lore% 95 Gallery% 94 Achievement% 84 Wizard Run 0 Options --------- ASCII 1 Keyboard 0 Movement Vi Keybinds 0 Fullscreen 1 Font 16/Smallcaps Map View 184x79 Tactical HUD 1 Map Filters NONE Filters NONE Steam 1 RUN: a28fafc5-e393-452e-bd83-ffaabdc2a0fc